[Event "USA-ch Women 2024"]
[Site "Saint Louis"]
[Date "2024.10.13"]
[Round "3.1"]
[White "Yip, Carissa"]
[Black "Yu, Jennifer"]
[Result "1-0"]
[ECO "B75"]
[WhiteElo "2418"]
[BlackElo "2267"]
[Annotator "TA"]
[PlyCount "77"]
[EventDate "2024.10.09"]
[EventType "tourn"]
[EventCountry "USA"]
[SourceTitle "playchess.com"]
[Source "ChessBase"]
[SourceQuality "1"]
[TimeControl "40/5400+30:1800+30"]

{[%evp 18,76,72,61,65,57,67,20,25,33,61,2,90,100,195,147,172,137,292,223,248,253,219,179,182,175,199,179,196,192,187,160,182,185,161,177,176,190,189,181,170,110,102,0,0,22,5,0,360,346,829,822,827,821,29990,804,29994,29995,29995,29994,29994]} 1. e4 {[%emt 0:00:02]} c5 {[%emt 0:00:13]} 2. Nf3 {[%emt 0:00:06]} d6 {[%emt 0:00:29]} 3. d4 {[%emt 0:00:10]} cxd4 {[%emt 0:00:22]} 4. Nxd4 {[%emt 0:00:04]} Nf6 {[%emt 0:00:17]} 5. Nc3 {[%emt 0:00:05]} g6 {[%emt 0:00:27]} 6. Be3 {[%emt 0:00:10]} Bg7 {[%emt 0:00:15]} 7. f3 {[%emt 0:00:07]} Nc6 {[%emt 0:00:09]} 8. Qd2 {[%emt 0:01:49]} h5 {[%emt 0:00:14]} 9. O-O-O {[%emt 0:03:05]} Bd7 {[%emt 0:00:24]} 10. Kb1 {[%emt 0:09:18]} a6 {[%emt 0:05:00]} 11. Nd5 {[%emt 0:05:13]} Ne5 {[%emt 0:14:42]} 12. Bg5 {[%emt 0:11:59]} (12. Nxf6+ $14 Bxf6 13. f4) 12... Nxd5 $11 {[%emt 0:20:13] The position is equal.} 13. exd5 {[%emt 0:00:06]} Qc7 {[%emt 0:11:34]} 14. Re1 {[%emt 0:12:03]} (14. h3 $14) 14... f6 {[%emt 0:07:03]} (14... O-O $1 $11) 15. Bh4 $16 {[%emt 0:03:32]} O-O-O {[%emt 0:09:20]} (15... Bh6 $16 16. f4 Bxf4 17. Qxf4 g5 18. Bxg5 fxg5 19. Qxg5 O-O-O) 16. Bf2 {[%emt 0:06:24]} (16. f4 $18 {[%cal Oe1e3] Threatens to win with Re3!} Bh6 17. Bf2) 16... f5 {[%emt 0:05:41]} 17. f4 {[%emt 0:05:03][%cal Oe1e3]} Bh6 $2 {[%emt 0:07:18]} (17... Ng4 $16) 18. h3 {[%emt 0:13:19]} Nc4 {[%emt 0:03:59]} 19. Qb4 {[%emt 0:01:44]} b5 {[%emt 0:01:28]} 20. Bxc4 {[%emt 0:06:01]} Qxc4 {[%emt 0:00:22]} 21. Qa5 {[%emt 0:00:04]} Qxd5 {[%emt 0:02:30]} 22. Rxe7 {[%emt 0:03:26]} Qb7 {[%emt 0:04:21] Black is weak on the dark squares} 23. Qc3+ {[%emt 0:04:35]} (23. Ne6 $6 Rde8 $16) 23... Kb8 {[%emt 0:00:34][%cal Oh8e8] [#]} 24. Rxd7 $1 {[%emt 0:00:06][%mdl 512]} Qxd7 {[%emt 0:00:48]} 25. Nc6+ {[%emt 0:00:03]} Ka8 {[%emt 0:01:33]} 26. Nxd8 {[%emt 0:00:03]} Rxd8 {[%emt 0:00:08]} 27. Qa5 {[%emt 0:06:08]} Bxf4 {[%emt 0:02:43]} 28. Qxa6+ {[%emt 0:00:21]} Kb8 {[%emt 0:00:02][%cal Ba8b8,Bb8c8,Bc8d7][%mdl 32]} 29. Qb6+ {[%emt 0:00:10]} (29. Bb6 $18 Rc8 30. Rd1) 29... Kc8 {[%emt 0:01:37]} 30. Rd1 {[%emt 0:03:31] White is more active.} (30. a4 $16) 30... Qb7 $11 {[%emt 0:00:21]} 31. Qa5 {[%emt 0:00:17] [#] Strongly threatening Bb6.} Re8 {[%emt 0:00:48][%cal Oe8e2]} 32. Bb6 $40 {[%emt 0:01:29][%mdl 128] Black needs to defend precisely.} Qxg2 $2 {[%emt 0:00:46][%mdl 8192]} (32... Qc6 $11 {and Black stays safe.} 33. Qa6+ Kd7 34. Qa7+ Kc8 (34... Ke6 35. Qg7 $11) 35. Qa6+ Kd7 36. Qa7+ Kc8 (36... Ke6 37. Qg7 $11) 37. Qa6+) 33. Qxb5 $18 {[%emt 0:00:45]} Re5 {[%emt 0:00:37]} (33... Qe4 34. a4 Re5 35. Qa6+ Kd7 36. Qa7+ Ke8) 34. Qc4+ {[%emt 0:00:44]} Kd7 {[%emt 0:00:22]} 35. Qxf4 {[%emt 0:00:13]} Kc6 {[%emt 0:00:26]} 36. Bg1 {[%emt 0:01:18]} (36. Qa4+ $142 Rb5 37. Qa8+ Kxb6 38. Qxg2 d5 39. Qxg6+ Kc5 40. a3 (40. Qxf5 Kb6 41. Rxd5 Rxd5 42. Qxd5 Kc7 43. a4 Kc8 44. Qd6 Kb7 45. a5 h4 46. a6+ Ka7 47. Qc6 Kb8 48. Qb7#) (40. Qg1+ Kc6 41. Qg6+ Kc5 42. a3 Rb6 43. b4+ Kb5 44. Qe8+ Ka6 45. Qa8+ Kb5 46. c4+ Kxc4 47. Qxd5+ Kc3 48. Qd3#) 40... Rb6 41. b4+ (41. Qxf5 Rd6 42. Qc8+ Rc6 43. Qd8 Kb5 44. Rxd5+ Rc5 45. Qb8+ Ka6 46. Rd6+ Rc6 47. Rxc6+ Ka5 48. Qb4#) 41... Kb5 42. Qe8+ (42. Rxd5+ Ka6 43. Ra5+ Kb7 44. Qf7+ Kb8 45. Ra7 Rxb4+ 46. axb4 h4 47. Qc7#) 42... Ka6 43. Qa8+ (43. Rxd5 Ka7 44. Qe7+ Ka8 45. Qc7 Rxb4+ 46. axb4 h4 47. Rd8#) 43... Kb5 44. c4+ (44. Rxd5+ Kc4 45. Qa5 Rxb4+ 46. axb4 h4 47. Qc5#) 44... Kxc4 45. Qxd5+ Kc3 46. Qd3#) 36... Qxh3 {[%emt 0:00:35]} 37. Qa4+ {[%emt 0:00:30] White mates.} Kc7 {[%emt 0:00:14]} 38. Qa7+ {[%emt 0:00:04]} Kc8 {[%emt 0:00:13]} 39. Qa6+ {[%emt 0:00:05] Weighted Error Value: White=0.24 (precise) /Black=0.67.  Loses game:     	---       	Black=1      Mistake:       	White=5     	Black=4      Inaccurate:     	---       	Black=1      OK:         	White=8     	Black=3      Best:        	White=3     	Black=7} (39. Rxd6 $2 {gets mated.} Qf1+) 1-0

[Event "USA-ch Women 2024"]
[Site "Saint Louis"]
[Date "2024.10.13"]
[Round "3.2"]
[White "Zatonskih, Anna"]
[Black "Krush, Irina"]
[Result "1/2-1/2"]
[ECO "D00"]
[WhiteElo "2312"]
[BlackElo "2388"]
[Annotator "TA"]
[PlyCount "66"]
[EventDate "2024.10.09"]
[EventType "tourn"]
[EventCountry "USA"]
[SourceTitle "playchess.com"]
[Source "ChessBase"]
[SourceQuality "1"]
[TimeControl "40/5400+30:1800+30"]

{[%evp 9,66,-51,-39,-79,-34,-31,-22,-36,0,-9,0,0,0,0,0,0,0,0,0,-6,3,0,0,0,13,2,12,0,8,0,7,0,0,0,0,5,0,0,12,0,0,0,0,0,0,0,0,0,0,-6,0,-57,0,0,0,-76,0,0,0]} 1. d4 {[%emt 0:00:10]} Nf6 {[%emt 0:00:16]} 2. Nc3 {[%emt 0:00:10]} d5 {[%emt 0:00:28]} 3. Bf4 {[%emt 0:00:45]} e6 {[%emt 0:00:29]} 4. Nb5 {[%emt 0:05:00]} Na6 {[%emt 0:06:15]} 5. a4 {[%emt 0:14:45]} c6 {[%emt 0:01:17]} 6. Na3 {[%emt 0:16:06]} Bd6 {[%emt 0:07:43]} 7. e3 {[%emt 0:00:13]} Bxf4 {[%emt 0:00:09]} 8. exf4 Qd6 {[%emt 0:21:02]} 9. Qc1 {[%emt 0:01:31]} b6 {[%emt 0:00:00]} 10. Nf3 {[%emt 0:00:30]} O-O {[%emt 0:00:00]} 11. c3 {[%emt 0:00:30]} Nc7 {[%emt 0:00:00]} 12. Bd3 {[%emt 0:09:42]} Ba6 {[%emt 0:00:00]} 13. Bxa6 {[%emt 0:00:30]} Nxa6 {[%emt 0:00:00]} 14. O-O {[%emt 0:07:16]} Nc7 {[%emt 0:05:12]} 15. Ne5 a5 {[%emt 0:24:12]} 16. Qc2 {[%emt 0:05:29]} g6 {[%emt 0:05:22]} 17. Rfd1 {[%emt 0:08:10]} b5 {[%emt 0:00:00]} 18. Qe2 {[%emt 0:05:26]} Rfb8 {[%emt 0:00:00]} 19. Nc2 {[%emt 0:03:03][%cal Ba3c2,Bc2e1,Be1d3][%mdl 32]} bxa4 {[%emt 0:00:00]} 20. Ne1 {[%emt 0:01:17]} c5 {[%emt 0:00:00]} 21. dxc5 {[%emt 0:00:30]} Qxc5 {[%emt 0:00:00]} 22. Rxa4 {[%emt 0:03:46]} Nb5 {[%emt 0:02:58]} 23. N1d3 {[%emt 0:00:08]} Qc7 {[%emt 0:00:00]} 24. Rda1 {[%emt 0:00:52]} Ne4 {[%emt 0:00:24]} 25. Qe1 {[%emt 0:00:30]} Nbd6 {[%emt 0:00:30]} 26. h3 {[%emt 0:00:30]} Rb3 {[%emt 0:00:30]} 27. Qd1 {[%emt 0:00:30]} Rb5 {[%emt 0:00:30]} 28. Qe2 {[%emt 0:00:30]} Rab8 {[%emt 0:00:30]} 29. R1a2 {[%emt 0:00:30]} R8b7 {[%emt 0:00:30]} 30. Qe3 {[%emt 0:00:30]} ({Günstiger ist} 30. Qe1 $11) 30... Nf5 {[%emt 0:00:30]} 31. Qe1 {[%emt 0:00:30]} Nfd6 {[%emt 0:00:30]} 32. Qe3 {[%emt 0:00:30] [#]} Nf5 {[%emt 0:00:30]} (32... f6 $1 $17 {[%cal Rf6e5]} 33. Nf3 Nc4) 33. Qe1 $11 {[%emt 0:00:30]} Nfd6 {[%emt 0:00:30] Gewichteter Fehlerwert: Weiß=0.06 (makellos) /Schwarz=0.10 (sehr präzise) .  Fehler:       	Weiß=1     	Schwarz=1     Ungenau:       	---       	Schwarz=2     OK:         	Weiß=15    	Schwarz=14} 1/2-1/2

[Event "USA-ch Women 2024"]
[Site "Saint Louis"]
[Date "2024.10.13"]
[Round "3.3"]
[White "Cervantes Landeiro, Thalia"]
[Black "Atwell, Rose"]
[Result "1/2-1/2"]
[ECO "D27"]
[WhiteElo "2302"]
[BlackElo "2185"]
[Annotator "RC"]
[PlyCount "137"]
[EventDate "2024.10.09"]
[EventType "tourn"]
[EventCountry "USA"]
[SourceTitle "playchess.com"]
[Source "ChessBase"]
[SourceQuality "1"]
[TimeControl "40/5400+30:1800+30"]

1. d4 {[%emt 0:00:03]} d5 {[%emt 0:00:05]} 2. c4 {[%emt 0:00:12]} dxc4 {[%emt 0:00:06]} 3. Nf3 {[%emt 0:00:08]} Nf6 {[%emt 0:00:04]} 4. e3 {[%emt 0:00:08]} e6 {[%emt 0:00:09]} 5. Bxc4 {[%emt 0:00:08]} c5 {[%emt 0:00:04]} 6. O-O {[%emt 0:00:28]} a6 {[%emt 0:00:05]} 7. Re1 {[%emt 0:00:34]} b5 {[%emt 0:06:04]} 8. Bf1 {[%emt 0:00:29]} Bb7 {[%emt 0:04:52]} 9. a4 {[%emt 0:02:05]} b4 {[%emt 0:03:44]} 10. Nbd2 {[%emt 0:03:01]} cxd4 {[%emt 0:02:06]} 11. Nxd4 {[%emt 0:04:05]} Nbd7 {[%emt 0:05:40]} 12. a5 {[%emt 0:11:05]} Be7 {[%emt 0:06:43]} 13. Nc4 {[%emt 0:15:09]} O-O {[%emt 0:03:14]} 14. b3 {[%emt 0:02:21]} Ne4 {[%emt 0:06:06]} 15. Bb2 {[%emt 0:03:35]} Rc8 {[%emt 0:08:10]} 16. Bd3 {[%emt 0:05:21]} Ndf6 {[%emt 0:07:51]} 17. Qe2 {[%emt 0:05:07]} Nc5 {[%emt 0:06:52]} 18. Bc2 {[%emt 0:02:05]} Qc7 {[%emt 0:03:48]} 19. Rec1 {[%emt 0:04:45]} Qb8 {[%emt 0:01:49]} 20. h3 {[%emt 0:04:32]} Nfe4 {[%emt 0:05:21]} 21. Nf3 {[%emt 0:07:59]} Nc3 {[%emt 0:03:57]} 22. Bxc3 {[%emt 0:04:00]} bxc3 {[%emt 0:00:07]} 23. Nb6 {[%emt 0:04:00]} Rc7 {[%emt 0:02:22]} 24. Ne5 {[%emt 0:02:43]} Bf6 {[%emt 0:04:41]} 25. Ng4 {[%emt 0:02:30]} Be7 {[%emt 0:01:36]} 26. Ne5 {[%emt 0:00:52]} Bf6 {[%emt 0:01:47]} 27. Nec4 {[%emt 0:00:29]} g6 {[%emt 0:02:11]} 28. Rd1 {[%emt 0:01:46]} Bc6 {[%emt 0:01:04]} 29. e4 {[%emt 0:02:48]} Bb5 {[%emt 0:02:34]} 30. e5 {[%emt 0:00:58]} Bg7 {[%emt 0:01:08]} 31. Qe3 {[%emt 0:01:01]} Bxc4 {[%emt 0:01:55]} 32. bxc4 {[%emt 0:01:24]} Rc6 {[%emt 0:00:48]} 33. Re1 {[%emt 0:01:22]} f6 {[%emt 0:00:47]} 34. Rab1 {[%emt 0:03:00]} Qxe5 {[%emt 0:02:22]} 35. Qf3 {[%emt 0:00:27]} Qc7 {[%emt 0:00:28]} 36. Qxc3 {[%emt 0:00:44]} f5 {[%emt 0:00:06]} 37. Qf3 {[%emt 0:01:09]} Rd6 {[%emt 0:02:33]} 38. Rbd1 {[%emt 0:01:44]} Bd4 {[%emt 0:01:11]} 39. h4 {[%emt 0:04:47]} Ne4 {[%emt 0:02:37]} 40. Rf1 {[%emt 0:00:46]} e5 {[%emt 0:02:24]} 41. Bb3 {[%emt 0:17:33]} Kg7 {[%emt 0:04:50]} 42. h5 {[%emt 0:04:23]} Qc5 {[%emt 0:03:31]} 43. Na4 {[%emt 0:04:30]} Qxa5 {[%emt 0:02:07]} 44. c5 {[%emt 0:00:24]} Rdf6 {[%emt 0:09:53]} 45. Rc1 {[%emt 0:02:43]} Qb5 {[%emt 0:02:00]} 46. Qd1 {[%emt 0:01:45]} Ng3 {[%emt 0:04:36]} 47. Re1 {[%emt 0:00:26]} f4 {[%emt 0:01:10]} 48. Qc2 {[%emt 0:00:51]} Rf5 {[%emt 0:01:45]} 49. h6+ {[%emt 0:00:57]} Kxh6 {[%emt 0:00:23]} 50. Be6 {[%emt 0:00:18]} Rh5 {[%emt 0:01:15]} 51. Bh3 {[%emt 0:00:11]} Qc6 {[%emt 0:01:37]} 52. Kh2 {[%emt 0:00:24]} Nf5 {[%emt 0:01:24]} 53. Nb6 {[%emt 0:00:45]} Nh4 {[%emt 0:01:18]} 54. Qe4 {[%emt 0:00:39]} Qe6 {[%emt 0:01:21]} 55. Qe2 {[%emt 0:01:43]} Qc6 {[%emt 0:00:43]} 56. Qe4 {[%emt 0:00:17]} Qe6 {[%emt 0:00:26]} 57. Kg1 {[%emt 0:00:40]} Qa2 {[%emt 0:00:19]} 58. Rc2 {[%emt 0:00:32]} Qb3 {[%emt 0:00:05]} 59. Nd7 {[%emt 0:00:25]} Rg5 {[%emt 0:00:32]} 60. Kh2 {[%emt 0:00:37]} Bxf2 {[%emt 0:01:07]} 61. Nxf8 {[%emt 0:00:35]} Qg3+ {[%emt 0:00:19]} 62. Kh1 {[%emt 0:00:04]} f3 {[%emt 0:00:34]} 63. Qb7 {[%emt 0:00:56]} fxg2+ {[%emt 0:00:34]} 64. Bxg2 {[%emt 0:00:01]} Rh5 {[%emt 0:00:30]} 65. Qxh7+ {[%emt 0:00:15]} Kg5 {[%emt 0:00:02]} 66. Qe7+ {[%emt 0:00:36]} Kh6 {[%emt 0:00:38]} 67. Qh7+ {[%emt 0:00:08]} Kg5 {[%emt 0:00:05]} 68. Qe7+ {[%emt 0:01:12]} Kh6 {[%emt 0:00:54]} 69. Qh7+ {[%emt 0:00:10]} 1/2-1/2

[Event "USA-ch Women 2024"]
[Site "Saint Louis"]
[Date "2024.10.13"]
[Round "3.4"]
[White "Paikidze, Nazi"]
[Black "Lee, Alice"]
[Result "1/2-1/2"]
[ECO "E04"]
[WhiteElo "2314"]
[BlackElo "2395"]
[Annotator "TA"]
[PlyCount "56"]
[EventDate "2024.10.09"]
[EventType "tourn"]
[EventCountry "USA"]
[SourceTitle "playchess.com"]
[Source "ChessBase"]
[SourceQuality "1"]
[TimeControl "40/5400+30:1800+30"]

{[%evp 13,56,8,0,0,0,-30,14,-20,0,0,0,0,1,0,0,0,0,0,0,0,0,-31,-27,-72,-77,-104,-97,-98,-29,-33,-8,-8,0,0,0,0,0,0,0,0,0,0,0,0,0]} 1. d4 {[%emt 0:00:04]} d5 {[%emt 0:00:14]} 2. c4 {[%emt 0:00:05]} e6 {[%emt 0:00:08]} 3. Nf3 {[%emt 0:00:06]} Nf6 {[%emt 0:00:07]} 4. g3 {[%emt 0:00:06]} dxc4 {[%emt 0:00:28]} 5. Bg2 {[%emt 0:00:16]} Nbd7 {[%emt 0:00:18]} 6. O-O {[%emt 0:06:38]} c6 {[%emt 0:00:27]} 7. Qc2 {[%emt 0:01:40]} b5 {[%emt 0:01:26]} 8. Rd1 {[%emt 0:05:47]} Bb7 {[%emt 0:02:30]} 9. Nc3 {[%emt 0:02:13][%cal Bb1c3,Bc3e4,Be4c5][%mdl 32]} a5 {[%emt 0:08:52]} 10. Bg5 {[%emt 0:05:54]} Be7 {[%emt 0:02:54]} 11. Ne5 {[%emt 0:11:04]} Nd5 {[%emt 0:06:35]} 12. Bxe7 {[%emt 0:12:09]} Qxe7 {[%emt 0:00:37]} 13. Nxd7 {[%emt 0:06:08]} Qxd7 {[%emt 0:03:50]} 14. Ne4 {[%emt 0:00:10]} O-O {[%emt 0:07:40]} 15. Nc5 {[%emt 0:01:04]} Qc7 {[%emt 0:00:45]} 16. e3 {[%emt 0:09:45]} a4 {[%emt 0:03:20]} 17. a3 {[%emt 0:00:35]} Nf6 {[%emt 0:00:43]} 18. Qe2 {[%emt 0:03:05]} Nd7 {[%emt 0:02:12]} 19. Qh5 {[%emt 0:01:21]} g6 {[%emt 0:04:42]} 20. Qg5 {[%emt 0:03:12] [#]} Nxc5 {[%emt 0:03:51]} ({Black should try} 20... Rad8 $1 $17) 21. dxc5 $11 {[%emt 0:01:50]} Rad8 {[%emt 0:00:40] Dodges Rd6} (21... Rfd8 $5) 22. Qf6 {[%emt 0:12:22] The position is equal.} Rd7 {[%emt 0:04:04]} 23. Rxd7 {[%emt 0:01:35]} Qxd7 {[%emt 0:00:03]} 24. Bf3 {[%emt 0:00:19]} Qd8 {[%emt 0:07:03]} 25. Qe5 {[%emt 0:00:24]} Qb8 {[%emt 0:06:17]} 26. Qf6 {[%emt 0:04:35]} Qd8 {[%emt 0:03:36] Prevents Rd1.} 27. Qe5 {[%emt 0:00:05]} Qb8 {[%emt 0:00:05]} 28. Qf6 {[%emt 0:00:04]} Qd8 {[%emt 0:01:21] Prevents Rd1.   Weighted Error Value: White=0.08 (flawless) /Black=0.09 (flawless) .  Mistake:       	---       	Black=1      Inaccurate:     	White=5     	Black=1      OK:         	White=11    	Black=5      Best:        	White=1     	---} 1/2-1/2

[Event "USA-ch Women 2024"]
[Site "Saint Louis"]
[Date "2024.10.13"]
[Round "3.5"]
[White "Pourkashiyan, Atousa"]
[Black "Abrahamyan, Tatev"]
[Result "0-1"]
[ECO "C04"]
[WhiteElo "2269"]
[BlackElo "2327"]
[Annotator "RC"]
[PlyCount "100"]
[EventDate "2024.10.09"]
[EventType "tourn"]
[EventCountry "USA"]
[SourceTitle "playchess.com"]
[Source "ChessBase"]
[SourceQuality "1"]
[TimeControl "40/5400+30:1800+30"]

1. e4 {[%emt 0:00:04]} e6 {[%emt 0:00:07]} 2. d4 {[%emt 0:00:09]} d5 {[%emt 0:00:06]} 3. Nd2 {[%emt 0:00:11]} Nc6 {[%emt 0:00:18]} 4. Ngf3 {[%emt 0:01:28]} Nf6 {[%emt 0:00:26]} 5. e5 {[%emt 0:00:51]} Nd7 {[%emt 0:00:09]} 6. c3 {[%emt 0:07:56]} f6 {[%emt 0:02:15]} 7. exf6 {[%emt 0:00:46]} Qxf6 {[%emt 0:01:50]} 8. Nb3 {[%emt 0:05:50]} Bd6 {[%emt 0:05:07]} 9. Bg5 {[%emt 0:06:01]} Qf7 {[%emt 0:04:19]} 10. Bh4 {[%emt 0:02:45]} h6 {[%emt 0:15:45]} 11. Bb5 {[%emt 0:06:15]} O-O {[%emt 0:04:14]} 12. O-O {[%emt 0:01:39]} e5 {[%emt 0:09:39]} 13. Bxc6 {[%emt 0:12:52]} bxc6 {[%emt 0:00:15]} 14. dxe5 {[%emt 0:00:16]} Nxe5 {[%emt 0:08:51]} 15. Nxe5 {[%emt 0:00:53]} Bxe5 {[%emt 0:00:03]} 16. Bg3 {[%emt 0:02:55]} Bd6 {[%emt 0:00:45]} 17. Qd4 {[%emt 0:05:46]} a5 {[%emt 0:08:03]} 18. Rfe1 {[%emt 0:11:19]} a4 {[%emt 0:14:43]} 19. Nc5 {[%emt 0:01:33]} Ra5 {[%emt 0:01:02]} 20. Nd3 {[%emt 0:06:31]} c5 {[%emt 0:01:20]} 21. Qh4 {[%emt 0:01:35]} Qf5 {[%emt 0:08:22]} 22. Re3 {[%emt 0:03:19]} Qg4 {[%emt 0:04:19]} 23. Qxg4 {[%emt 0:07:56]} Bxg4 {[%emt 0:00:02]} 24. f3 {[%emt 0:05:26]} Bf5 {[%emt 0:00:59]} 25. Rd1 {[%emt 0:01:14]} Bxg3 {[%emt 0:05:26]} 26. hxg3 {[%emt 0:00:05]} Bxd3 {[%emt 0:02:00]} 27. Rdxd3 {[%emt 0:00:31]} c4 {[%emt 0:00:17]} 28. Rd2 {[%emt 0:00:23]} a3 {[%emt 0:00:32]} 29. bxa3 {[%emt 0:01:05]} c6 {[%emt 0:00:10]} 30. Rb2 {[%emt 0:03:31]} Rf6 {[%emt 0:01:05]} 31. g4 {[%emt 0:02:05]} Rxa3 {[%emt 0:00:34]} 32. Kf2 {[%emt 0:00:02]} Rf7 {[%emt 0:01:08]} 33. Kg3 {[%emt 0:01:32]} Rfa7 {[%emt 0:00:49]} 34. Rb6 {[%emt 0:01:17]} R3a6 {[%emt 0:01:20]} 35. Rb8+ {[%emt 0:00:05]} Kf7 {[%emt 0:00:31]} 36. Ree8 {[%emt 0:00:34]} Rxa2 {[%emt 0:00:32]} 37. Rf8+ {[%emt 0:01:41]} Ke7 {[%emt 0:00:18]} 38. Rbd8 {[%emt 0:00:35]} Rd7 {[%emt 0:01:09]} 39. Rde8+ {[%emt 0:00:33]} Kd6 {[%emt 0:00:08]} 40. Rg8 {[%emt 0:00:24]} Ra3 {[%emt 0:00:40]} 41. Re3 {[%emt 0:30:31]} d4 {[%emt 0:07:42]} 42. Re4 {[%emt 0:00:00]} dxc3 {[%emt 0:01:20]} 43. g5 {[%emt 0:00:00]} hxg5 {[%emt 0:08:21]} 44. Rxc4 {[%emt 0:00:00]} Kd5 {[%emt 0:02:06]} 45. Re4 {[%emt 0:00:00]} c2 {[%emt 0:00:31]} 46. Re1 {[%emt 0:00:00]} Rc3 {[%emt 0:01:59]} 47. Rc1 {[%emt 0:00:00]} Kc4 {[%emt 0:00:08]} 48. Ra8 {[%emt 0:00:00]} Rd1 {[%emt 0:00:18]} 49. Raa1 {[%emt 0:00:00]} Rxc1 {[%emt 0:00:05]} 50. Rxc1 {[%emt 0:00:00]} Kd3 {[%emt 0:00:04]} 0-1

[Event "USA-ch Women 2024"]
[Site "Saint Louis"]
[Date "2024.10.13"]
[Round "3.6"]
[White "Lee, Megan"]
[Black "Tokhirjonova, Gulrukhbegim"]
[Result "0-1"]
[ECO "B06"]
[WhiteElo "2253"]
[BlackElo "2374"]
[Annotator "TA"]
[PlyCount "76"]
[EventDate "2024.10.09"]
[EventType "tourn"]
[EventCountry "USA"]
[SourceTitle "playchess.com"]
[Source "ChessBase"]
[SourceQuality "1"]
[TimeControl "40/5400+30:1800+30"]

{[%evp 9,76,29,42,33,52,31,76,72,78,77,89,97,81,91,96,98,106,103,89,90,87,88,89,79,84,94,66,-28,-16,-37,-20,-28,-33,-46,-16,-243,-193,-351,-276,-257,-254,-268,-275,-202,-189,-271,-273,-426,-275,-543,-617,-905,-362,-379,-333,-385,-379,-422,-370,-379,-375,-370,-373,-461,-461,-858,-850,-4960,-4702]} 1. e4 {[%emt 0:00:03]} g6 {[%emt 0:00:15]} 2. d4 {[%emt 0:00:05][%cal Bd2d4,Bd4d5][%mdl 32]} Bg7 {[%emt 0:00:14]} 3. Nc3 {[%emt 0:00:16]} d6 {[%emt 0:00:21]} 4. Be3 {[%emt 0:00:20]} a6 {[%emt 0:00:15]} 5. a4 {[%emt 0:09:30]} Nc6 {[%emt 0:00:51][%cal Bb8c6,Bc6e5,Be5f3][%mdl 32]} 6. d5 {[%emt 0:03:14]} Ne5 {[%emt 0:08:25]} 7. Bd4 {[%emt 0:05:57]} g5 {[%emt 0:05:21]} 8. Be2 {[%emt 0:10:37] White is better.} c5 {[%emt 0:04:19]} 9. dxc6 {[%emt 0:09:43]} bxc6 {[%emt 0:00:08] [#]} 10. Nf3 $1 {[%emt 0:01:42]} Nxf3+ {[%emt 0:12:38]} 11. Bxf3 {[%emt 0:00:19]} e5 {[%emt 0:00:15]} 12. Be3 {[%emt 0:00:20]} Be6 {[%emt 0:00:56]} 13. a5 {[%emt 0:06:49]} h6 {[%emt 0:03:32]} 14. O-O {[%emt 0:09:38]} Nf6 {[%emt 0:00:57]} 15. Na4 {[%emt 0:04:44]} O-O {[%emt 0:04:43][%cal Og5g4]} 16. Nb6 {[%emt 0:01:21]} Rb8 {[%emt 0:05:54]} 17. Qd3 {[%emt 0:02:30]} d5 {[%emt 0:01:08]} 18. exd5 {[%emt 0:01:31]} (18. Qxa6 $6 d4 19. Bd2 g4 $11) (18. Bc5 $14) 18... cxd5 $11 {[%emt 0:00:28]} 19. Qxa6 {[%emt 0:01:11]} d4 $1 {[%emt 0:00:53]} 20. Bd2 {[%emt 0:02:58] Bb4 is the strong threat.} e4 {[%emt 0:00:28]} 21. Be2 {[%emt 0:01:23]} Nd5 {[%emt 0:00:20] Prevents Bb4.} (21... Qc7 {looks sharper.} 22. Rac1 Rfd8 23. c4 e3) 22. Nxd5 {[%emt 0:06:29] This move loses the game for White.} (22. Bc4 $1 $11 {and White has nothing to worry.}) 22... Qxd5 $19 {[%emt 0:00:22]} 23. Rab1 {[%emt 0:09:36]} (23. b3 d3 24. cxd3 Bxa1 25. Rxa1 Qxb3 (25... Rxb3 $2 26. Rd1 $19) 26. d4 (26. dxe4 $2 Qb2 $19)) 23... Rfc8 {[%emt 0:01:41]} 24. Rfc1 {[%emt 0:03:30]} Qd7 {[%emt 0:01:07] ...Rc6 would now be deadly.} 25. Bf1 {[%emt 0:01:47]} Ba2 {[%emt 0:00:49]} 26. Ra1 {[%emt 0:01:00]} Rxb2 {[%emt 0:00:41][%cal Oa2d5]} 27. h4 {[%emt 0:02:54]} (27. Qe2 $142 Rcxc2 (27... Rbxc2 $2 28. Rxc2 Rxc2 29. Rc1 $19) 28. Rxc2 Rxc2 29. Rd1) 27... Bd5 {[%emt 0:10:57] Strongly threatening ...d3.} (27... Rbxc2 28. Rxc2 Rxc2 29. Qa8+ Bf8 30. Bb4 $11 (30. Qxe4 $2 Rxd2 31. Bd3 f5 $19)) (27... gxh4 28. Bxh6 h3 (28... Rbxc2 29. Rxc2 Rxc2 30. Qa8+ Rc8 31. Qxe4 $16) 29. Bxg7 Kxg7 30. Qe2 $19) 28. hxg5 {[%emt 0:00:21]} (28. Qe2 $142 Rcxc2 (28... gxh4 $2 29. a6 $17) (28... Rbxc2 $2 29. hxg5 hxg5 30. a6 $19) 29. Rxc2 Rxc2 30. Qd1) 28... hxg5 {[%emt 0:00:09][%cal Od4d3] Hoping for ...d3!} (28... Rbxc2 29. gxh6 Be5 30. h7+ Kh8 31. Rxc2 Rxc2 32. Bf4 $11) 29. Bxg5 $2 {[%emt 0:01:00] [#]} (29. Rab1 Rxb1 (29... Rbxc2 $2 30. Be2 $19) (29... Rcxc2 $2 30. Rxb2 Rxb2 31. Bxg5 $17) 30. Rxb1 Rxc2 31. Qe2) 29... d3 $1 {[%emt 0:00:40][%mdl 512]} 30. Bf4 {[%emt 0:01:57]} (30. Be3 Ra8) 30... Ra8 {[%emt 0:04:49]} ({Less strong is} 30... Rcxc2 31. Rxc2 Rxc2 (31... dxc2 32. Rc1 $11) 32. Rb1 $15) (30... Rc6 $142 31. Qa8+ Rc8) 31. Qd6 {[%emt 0:00:18]} Qxd6 {[%emt 0:00:08]} 32. Bxd6 {[%emt 0:00:02] White is weak on the light squares} Rxc2 {[%emt 0:00:20]} (32... dxc2 $2 33. Bf4 $19) 33. Rab1 {[%emt 0:01:52] Dodges Bb3} Ba2 {[%emt 0:03:43]} ({Don't take} 33... Rxa5 34. Rd1 Bd4 35. Rb8+ Kg7 36. Bg3) 34. Rxc2 {[%emt 0:01:23]} dxc2 {[%emt 0:00:02]} 35. Rc1 {[%emt 0:00:48]} Bb3 {[%emt 0:00:11]} (35... Rxa5 36. Rxc2 Bd4 37. Bf4 $11) 36. Bf4 {[%emt 0:00:22]} Rxa5 {[%emt 0:00:21] Black is clearly winning.} 37. f3 {[%emt 0:00:38]} (37. Be2 $142) 37... Bb2 {[%emt 0:00:50]} 38. Re1 {[%emt 0:00:28]} Bd4+ {[%emt 0:00:07] Weighted Error Value: White=0.99/Black=0.23 (precise) .  Loses game:     	White=1     	---        Mistake:       	White=6     	Black=1      Inaccurate:     	White=2     	Black=3      OK:         	White=9     	Black=11     Best:        	White=2     	Black=5      Strong:       	White=1     	Black=1      Brilliant:      	---       	Black=1} 0-1